bitfinex/quotes_BTCUSD_20250602
["timestamp","ask_amount","ask_price","bid_price","bid_amount"]
[1748905568917,1.09771854,105680.0,105670.0,0.0020924]
[1748905569130,1.09771854,105680.0,105670.0,0.19136087]
[1748905569389,1.04771854,105680.0,105670.0,0.21028735]
[1748905569642,1.04771854,105680.0,105670.0,0.2008242]
[1748905570158,1.04771854,105680.0,105670.0,0.20082429]
[1748905570635,0.02839428,105650.0,105640.0,0.29872011]
[1748905570861,0.49688041,105650.0,105640.0,0.30832345]
[1748905571076,0.51581011,105650.0,105640.0,0.32725468]
[1748905571332,0.50634508,105650.0,105640.0,0.32725468]
[1748905571539,0.47231556,105650.0,105640.0,0.32725468]
[1748905571757,0.46758032,105650.0,105640.0,0.33425468]
[1748905571974,0.47704526,105650.0,105640.0,0.33425468]
[1748905572188,0.47704517,105650.0,105640.0,0.33425468]
[1748905572649,0.47704517,105650.0,105640.0,0.34309393]
[1748905572879,0.46758032,105650.0,105640.0,0.33425468]
[1748905573108,0.46658032,105650.0,105640.0,0.32725468]
[1748905573345,0.48178032,105650.0,105640.0,0.32725468]
[1748905573569,0.48278032,105650.0,105640.0,0.34409395]
[1748905573804,0.48178032,105650.0,105640.0,0.32725468]
[1748905574033,0.48178032,105650.0,105640.0,0.32825468]
[1748905574508,1.02768462,105650.0,105640.0,0.1011375]
[1748905574747,1.49308466,105650.0,105640.0,0.07894985]
[1748905574975,1.54308466,105650.0,105640.0,0.07894985]
[1748905575445,1.70241769,105650.0,105640.0,0.07894985]
[1748905575680,1.78827275,105650.0,105640.0,0.07894985]
[1748905575931,1.7978023,105650.0,105640.0,0.07894985]
[1748905576151,1.82004358,105650.0,105640.0,0.07794985]
[1748905576394,1.83779382,105650.0,105640.0,0.07794985]
[1748905576720,1.82604358,105650.0,105640.0,0.07994985]
[1748905576940,0.24956069,105620.0,105610.0,0.19876207]
[1748905577151,0.73445355,105620.0,105610.0,0.21818131]
[1748905577359,0.70667939,105620.0,105610.0,0.21818131]
[1748905577570,0.70667939,105620.0,105610.0,0.20871305]
[1748905577803,0.70667939,105620.0,105610.0,0.22764984]
[1748905578006,0.72543199,105620.0,105610.0,0.23949829]
[1748905578217,0.70767939,105620.0,105610.0,0.23064984]
[1748905578646,0.70867939,105620.0,105610.0,0.24311801]
[1748905578865,0.50985342,105620.0,105610.0,0.24311801]
[1748905579089,0.51932123,105620.0,105610.0,0.24311801]
[1748905579295,0.51832114,105620.0,105610.0,0.24011801]
[1748905579508,0.51932114,105620.0,105610.0,0.24011801]
[1748905579955,1.0287444,105620.0,105610.0,0.198707]
[1748905580152,1.03540167,105620.0,105610.0,0.19932707]
[1748905580411,1.0297444,105620.0,105610.0,0.20917625]
[1748905580619,1.0458695,105620.0,105610.0,0.21926377]
[1748905580828,1.05533737,105620.0,105610.0,0.21926377]
[1748905581049,1.04868011,105620.0,105610.0,0.21926377]
[1748905581269,0.60102913,105620.0,105610.0,0.21926377]
[1748905581487,1.04868011,105620.0,105610.0,0.21926377]
[1748905581715,1.06643281,105620.0,105610.0,0.21926377]
[1748905582367,0.3738,105620.0,105610.0,0.21926377]
[1748905582608,0.002,105620.0,105610.0,0.35478624]
[1748905586396,0.002,105620.0,105610.0,0.36363872]
[1748905586605,0.002,105620.0,105610.0,0.35478624]
[1748905588186,0.002,105620.0,105610.0,0.33968624]
[1748905589310,0.002,105620.0,105610.0,0.35618624]
[1748905589750,0.002,105620.0,105610.0,0.33968624]
[1748905589974,0.002,105620.0,105610.0,0.32458624]
[1748905590213,0.44965098,105620.0,105610.0,0.65366624]
[1748905591079,0.002,105620.0,105610.0,0.65366624]
[1748905591522,0.002,105620.0,105610.0,0.66946624]
[1748905592437,0.002,105620.0,105610.0,0.32458624]
[1748905592662,0.002,105620.0,105610.0,0.65290624]
[1748905593955,0.002,105620.0,105610.0,0.32458624]
[1748905594804,0.002,105620.0,105610.0,0.30239389]
[1748905595459,0.36061533,105620.0,105610.0,0.62967389]
[1748905595671,0.38568251,105620.0,105610.0,0.30239389]
[1748905595889,0.41134987,105620.0,105610.0,0.30239389]
[1748905596102,0.39241533,105620.0,105610.0,0.30239389]
[1748905596333,0.36061533,105620.0,105610.0,0.30239389]
[1748905596550,0.002,105620.0,105610.0,0.30239389]
[1748905596777,0.002,105620.0,105610.0,0.31759389]
[1748905597880,0.01974571,105620.0,105610.0,0.31759389]
[1748905598524,0.0374914,105620.0,105610.0,0.31759389]
[1748905598737,0.01974571,105620.0,105610.0,0.31759389]
[1748905599168,0.03749094,105620.0,105610.0,0.31759389]
[1748905599372,0.03749097,105620.0,105610.0,0.31759389]
[1748905599687,0.01974571,105620.0,105610.0,0.31759389]
[1748905599770,0.03749099,105620.0,105610.0,0.64467389]
[1748905599980,0.03749099,105620.0,105610.0,0.64451389]
[1748905599981,0.01974571,105620.0,105610.0,0.64451389]
[1748905600608,0.03749149,105620.0,105610.0,0.64451389]
[1748905600814,0.01974571,105620.0,105610.0,0.64451389]
[1748905601022,0.01974571,105620.0,105610.0,0.31759389]
[1748905601229,0.01974571,105620.0,105610.0,0.64415389]
[1748905603157,0.37836104,105620.0,105610.0,0.30239389]
[1748905603419,0.37836104,105620.0,105610.0,0.62827389]
[1748905605585,0.41126104,105620.0,105610.0,0.30239389]
[1748905605807,0.41126104,105620.0,105610.0,0.62759389]
[1748905606014,0.40393668,105620.0,105610.0,0.62759389]
[1748905606453,0.02882135,105620.0,105610.0,0.62759389]
[1748905606680,0.01974571,105620.0,105610.0,0.64279389]
[1748905608958,0.01974571,105620.0,105610.0,0.65909389]
[1748905609182,0.01974571,105620.0,105610.0,1.37225007]
[1748905609398,0.01974571,105620.0,105610.0,1.42225007]
[1748905609608,0.01874571,105620.0,105610.0,1.42125007]
[1748905609819,0.01774571,105620.0,105610.0,1.42125007]
[1748905610247,0.01874571,105620.0,105610.0,1.06363474]
[1748905610469,0.01874571,105620.0,105610.0,1.42225007]
[1748905611116,0.02074571,105620.0,105610.0,1.42325007]
[1748905611538,0.01874571,105620.0,105610.0,1.42225007]
[1748905611749,0.01974571,105620.0,105610.0,1.42325007]
[1748905611960,0.01974571,105620.0,105610.0,1.06463474]
[1748905612170,0.01974571,105620.0,105610.0,1.42325007]
[1748905613024,0.01974571,105620.0,105610.0,1.06463474]
[1748905613235,0.01974571,105620.0,105610.0,1.42325007]
[1748905614328,0.01874571,105620.0,105610.0,1.42225007]
[1748905614542,0.01874571,105620.0,105610.0,1.42425007]
[1748905614826,0.01974571,105620.0,105610.0,1.42925007]
[1748905616187,0.01974571,105620.0,105610.0,1.07063474]
[1748905616400,0.01974571,105620.0,105610.0,1.42925007]
[1748905617264,0.01974571,105620.0,105610.0,1.45758191]
[1748905618887,0.01974571,105620.0,105610.0,1.75638191]
[1748905619322,0.01974571,105620.0,105610.0,1.42618358]
[1748905619538,0.01974571,105620.0,105610.0,1.39748658]
[1748905620185,0.01974571,105620.0,105610.0,1.75610191]
[1748905620833,0.01974571,105620.0,105610.0,1.39748658]
[1748905621055,0.01974571,105620.0,105610.0,1.46177474]
[1748905621279,0.01974571,105620.0,105610.0,1.09219389]
[1748905622169,0.01974571,105620.0,105610.0,1.10877389]
[1748905623027,0.01974571,105620.0,105610.0,1.09211389]
[1748905623505,0.01974571,105620.0,105610.0,0.79331389]
[1748905626562,0.01974571,105620.0,105610.0,0.80841389]
[1748905626786,0.01974571,105620.0,105610.0,0.48389389]
[1748905626991,0.01974571,105620.0,105610.0,0.79315389]
[1748905628260,0.03504571,105620.0,105610.0,0.79315389]
[1748905629355,0.05034571,105620.0,105610.0,1.09195389]
[1748905629572,0.03504571,105620.0,105610.0,1.09195389]
[1748905629794,0.03504571,105620.0,105610.0,0.76759389]
[1748905630056,0.03504571,105620.0,105610.0,1.09171389]
[1748905630489,0.03104571,105620.0,105610.0,1.09171389]
[1748905631788,0.04714571,105620.0,105610.0,1.09171389]
[1748905633281,0.03104571,105620.0,105610.0,1.09171389]
[1748905633923,0.01574571,105620.0,105610.0,1.10625474]
[1748905634136,0.01574571,105620.0,105610.0,1.48017007]
[1748905634345,0.01574571,105620.0,105610.0,1.49617007]
[1748905634973,0.01574571,105620.0,105610.0,1.13755474]
[1748905636272,0.01574571,105620.0,105610.0,1.49617007]
[1748905637354,0.01574571,105620.0,105610.0,1.47755474]
[1748905637642,0.00774571,105620.0,105610.0,1.83617007]
[1748905639415,0.00774571,105620.0,105610.0,1.86428181]
[1748905640076,0.00674571,105620.0,105610.0,1.42600181]
[1748905640294,0.00574571,105620.0,105610.0,1.85540181]
[1748905640950,0.00774571,105620.0,105610.0,1.85940181]
[1748905641171,0.00774571,105620.0,105610.0,1.50078648]
[1748905641441,0.00874571,105620.0,105610.0,1.87240181]
[1748905642088,0.00874571,105620.0,105610.0,1.06538648]
[1748905642310,0.00874571,105620.0,105610.0,1.14567474]
[1748905642523,0.00874571,105620.0,105610.0,1.46971474]
[1748905643177,0.00874571,105620.0,105610.0,1.48571474]
[1748905643632,0.00874571,105620.0,105610.0,1.87205719]
[1748905644104,0.00874571,105620.0,105610.0,1.87173719]
[1748905644568,0.00674571,105620.0,105610.0,1.45397474]
[1748905646064,0.00674571,105620.0,105610.0,1.47007474]
[1748905646314,0.00674571,105620.0,105610.0,1.81259007]
[1748905646552,0.00674571,105620.0,105610.0,1.84459007]
[1748905647931,0.00674571,105620.0,105610.0,1.84443007]
[1748905648324,0.00674571,105620.0,105610.0,1.87228266]
[1748905649726,0.00674571,105620.0,105610.0,1.51366733]
[1748905649977,0.00674571,105620.0,105610.0,1.87228266]
[1748905652721,0.00374571,105620.0,105610.0,2.69949799]
[1748905652949,0.0585186,105630.0,105620.0,0.26290154]
[1748905653163,0.0585186,105630.0,105620.0,1.4159865]
[1748905654668,0.0595186,105630.0,105620.0,1.4269865]
[1748905655366,0.0595186,105630.0,105620.0,0.70975584]
[1748905655611,0.0595186,105630.0,105620.0,1.4269865]
[1748905655836,0.0595186,105630.0,105620.0,1.00855584]
[1748905656138,0.00613942,105630.0,105620.0,6.14553784]
[1748905656356,0.00665624,105640.0,105630.0,0.60518092]
[1748905656504,0.00665624,105640.0,105630.0,1.41826588]
[1748905657208,0.0244037,105650.0,105640.0,0.60446032]
[1748905657423,0.0244037,105650.0,105640.0,2.20236995]
[1748905658309,0.0244037,105650.0,105640.0,2.23877695]
[1748905659399,0.0244037,105650.0,105640.0,2.24577695]
[1748905661796,0.01774093,105660.0,105650.0,0.538236]
[1748905662016,0.01774093,105660.0,105650.0,0.6340903]
[1748905662236,0.01774093,105660.0,105650.0,0.99270563]
[1748905663138,0.01822381,105660.0,105650.0,0.99270563]
[1748905663570,0.01822381,105660.0,105650.0,1.0009361]
[1748905663791,0.01822381,105660.0,105650.0,0.64932077]
[1748905664225,0.01822381,105660.0,105650.0,1.0079361]
[1748905664694,0.01922381,105660.0,105650.0,0.64932077]
[1748905664915,0.01822381,105660.0,105650.0,1.0079361]
[1748905665127,0.01822381,105660.0,105650.0,1.02255264]
[1748905665361,0.01822381,105660.0,105650.0,0.66393731]
[1748905665578,0.01822381,105660.0,105650.0,0.65570684]
[1748905665840,0.01822381,105660.0,105650.0,1.04570684]
[1748905665841,0.00032074,105660.0,105650.0,1.04570684]
[1748905666057,0.08209693,105670.0,105660.0,0.58781911]
[1748905666294,0.08209693,105670.0,105660.0,6.76798237]
[1748905666544,0.16193058,105710.0,105700.0,0.23213672]
[1748905666788,0.16193058,105710.0,105700.0,1.51887102]
[1748905667282,0.13013058,105710.0,105700.0,1.51887102]
[1748905667536,0.13013058,105710.0,105700.0,1.8629455]
[1748905667537,0.0854668,105710.0,105700.0,1.8629455]
[1748905667778,0.0854668,105710.0,105700.0,1.50446773]
[1748905668224,0.0854668,105710.0,105700.0,1.86308306]
[1748905668485,0.0854668,105710.0,105700.0,1.50446773]
[1748905669160,0.0854668,105710.0,105700.0,1.52426773]
[1748905669627,0.0854668,105710.0,105700.0,1.88288306]
[1748905669839,0.0693668,105710.0,105700.0,1.89742391]
[1748905670278,0.0693668,105710.0,105700.0,1.56682084]
[1748905670514,0.0693668,105710.0,105700.0,1.94300036]
[1748905670711,0.0693668,105710.0,105700.0,1.19219192]
[1748905670940,0.0856668,105710.0,105700.0,1.19219192]
[1748905671155,0.0856668,105710.0,105700.0,1.54343192]
[1748905671587,0.0856668,105710.0,105700.0,1.90204725]
[1748905672027,0.0856668,105710.0,105700.0,1.55651192]
[1748905672901,0.0636668,105710.0,105700.0,1.93269772]
[1748905673120,0.0636668,105710.0,105700.0,1.55651192]
[1748905674059,0.0636668,105710.0,105700.0,1.55739192]
[1748905674272,0.0636668,105710.0,105700.0,1.574951]
[1748905674487,0.0636668,105710.0,105700.0,1.57495025]
[1748905674703,0.0636668,105710.0,105700.0,1.55739192]
[1748905676446,0.0636668,105710.0,105700.0,1.55787192]
[1748905676654,0.0636668,105710.0,105700.0,1.83226822]
[1748905677086,0.0636668,105710.0,105700.0,1.37162441]
[1748905677299,0.0636668,105710.0,105700.0,1.55759192]
[1748905677952,0.0636668,105710.0,105700.0,1.57494862]
[1748905678168,0.0636668,105710.0,105700.0,1.55759192]
[1748905678841,0.0636668,105710.0,105700.0,1.57494913]
[1748905679068,0.0636668,105710.0,105700.0,1.55759192]
[1748905679277,0.0636668,105710.0,105700.0,1.57494874]
[1748905679491,0.0636668,105710.0,105700.0,1.55759192]
[1748905679976,0.0236668,105710.0,105700.0,1.55759192]
[1748905680209,0.0236668,105710.0,105700.0,1.57494828]
[1748905680417,0.0236668,105710.0,105700.0,1.55759192]
[1748905680643,0.0236668,105710.0,105700.0,1.91620725]
[1748905680873,0.02544589,105720.0,105710.0,0.21757529]
[1748905681092,0.00884589,105720.0,105710.0,1.0441917]
[1748905681356,0.00884589,105720.0,105710.0,1.4166011]
[1748905681577,0.00884589,105720.0,105710.0,1.4666011]
[1748905682236,0.00884355,105740.0,105730.0,0.57207499]
[1748905682464,0.00884355,105740.0,105730.0,1.37926462]
[1748905683356,0.00884355,105740.0,105730.0,1.6979396]
[1748905683885,0.00884355,105740.0,105730.0,1.33932427]
[1748905684059,0.00884355,105740.0,105730.0,1.6979396]
[1748905684298,0.00884355,105740.0,105730.0,1.34332427]
[1748905684511,0.00884355,105740.0,105730.0,1.6979396]
[1748905684944,0.00884355,105740.0,105730.0,1.7039396]
[1748905685188,0.00884355,105740.0,105730.0,1.7009396]
[1748905685413,0.00884355,105740.0,105730.0,1.7049396]
[1748905686928,0.00884355,105740.0,105730.0,1.7549396]
[1748905687135,0.00779494,105740.0,105730.0,7.19053693]
[1748905687355,0.00779494,105740.0,105730.0,6.8319216]
[1748905687573,0.00779494,105740.0,105730.0,7.19053693]
[1748905687790,0.0176857,105750.0,105740.0,1.32178508]
[1748905688014,0.0176857,105750.0,105740.0,6.94349768]
[1748905688015,1e-08,105750.0,105740.0,6.94349768]
[1748905688243,0.57696378,105800.0,105790.0,0.23195161]
[1748905688244,0.5154,105800.0,105790.0,0.23195161]
[1748905688467,0.5,105800.0,105790.0,1.21376591]
[1748905689161,0.50048348,105800.0,105790.0,1.21376591]
[1748905689382,0.50048348,105800.0,105790.0,1.22310838]
[1748905693686,0.50048348,105800.0,105790.0,1.21376591]
[1748905693905,0.53118348,105800.0,105790.0,1.21376591]
[1748905694352,0.53118348,105800.0,105790.0,1.4881622]
[1748905694800,0.53118348,105800.0,105790.0,1.5381622]
[1748905695250,0.51588348,105800.0,105790.0,1.5381622]
[1748905695467,0.50048348,105800.0,105790.0,1.5381622]
[1748905695685,0.50048348,105800.0,105790.0,1.54748721]
[1748905698347,0.53308348,105800.0,105790.0,1.54748721]
[1748905698559,0.53308348,105800.0,105790.0,1.24654506]
[1748905698989,0.51698348,105800.0,105790.0,1.24654506]
[1748905699293,0.50048348,105800.0,105790.0,1.24654506]
[1748905700259,0.54164174,105800.0,105790.0,1.24654506]
[1748905700482,0.53278348,105800.0,105790.0,1.24654506]
[1748905700702,0.54164174,105800.0,105790.0,1.24654506]
[1748905700988,0.53278348,105800.0,105790.0,1.24654506]
[1748905701230,0.53278348,105800.0,105790.0,1.25580775]
[1748905701448,0.54164172,105800.0,105790.0,1.25580775]
[1748905702178,0.55049997,105800.0,105790.0,0.78100775]
[1748905702415,0.54164172,105800.0,105790.0,1.25756775]
[1748905703594,0.55049998,105800.0,105790.0,1.25756775]
[1748905703819,0.54164172,105800.0,105790.0,1.25756775]
[1748905704077,0.55049998,105800.0,105790.0,1.25756775]
[1748905704381,0.50934172,105800.0,105790.0,1.25756775]
[1748905704412,0.50934172,105800.0,105790.0,1.2721086]
[1748905705154,0.53964172,105800.0,105790.0,0.9203886]
[1748905705381,0.54849973,105800.0,105790.0,1.2725086]
[1748905705633,0.53964172,105800.0,105790.0,1.2725086]
[1748905705812,0.53964172,105800.0,105790.0,1.2795086]
[1748905706670,0.54849974,105800.0,105790.0,1.2795086]
[1748905706928,0.53964172,105800.0,105790.0,1.2795086]
[1748905707354,0.54849976,105800.0,105790.0,1.2795086]
[1748905707981,0.53964172,105800.0,105790.0,1.2795086]
[1748905708440,0.54849981,105800.0,105790.0,1.2795086]
[1748905708674,0.53964172,105800.0,105790.0,1.2795086]
[1748905709142,0.53964172,105800.0,105790.0,1.55390489]
[1748905709636,0.53964172,105800.0,105790.0,0.77874506]
[1748905709883,0.53964172,105800.0,105790.0,1.25498506]
[1748905712499,0.53964172,105800.0,105790.0,0.90358506]
[1748905712723,0.53964172,105800.0,105790.0,1.25454506]
[1748905718087,0.53964172,105800.0,105790.0,1.25274506]
[1748905719055,0.50934172,105800.0,105790.0,0.90358506]
[1748905719289,0.50934172,105800.0,105790.0,1.25230506]
[1748905719528,0.54114172,105800.0,105790.0,1.25230506]
[1748905720959,0.54114172,105800.0,105790.0,1.55110506]
[1748905721212,0.54114172,105800.0,105790.0,1.20238506]
[1748905721440,0.54114172,105800.0,105790.0,1.55226506]
[1748905721891,0.54114172,105800.0,105790.0,1.55234506]
[1748905722322,0.54114172,105800.0,105790.0,1.55286506]
[1748905726896,0.50934172,105800.0,105790.0,1.55266506]
[1748905727124,0.54034172,105800.0,105790.0,1.20238506]
[1748905727353,0.54034172,105800.0,105790.0,1.55266506]
[1748905728266,0.54034172,105800.0,105790.0,1.20238506]
[1748905728495,0.54034172,105800.0,105790.0,1.55206506]
[1748905729200,0.54034172,105800.0,105790.0,1.55186506]
[1748905730384,0.54034172,105800.0,105790.0,1.20238506]
[1748905730612,0.54034172,105800.0,105790.0,1.55134506]
[1748905731583,0.54034172,105800.0,105790.0,1.55094506]
[1748905732770,0.54034172,105800.0,105790.0,1.25214506]
[1748905739180,0.50934172,105800.0,105790.0,1.30764438]
[1748905739488,0.50934172,105800.0,105790.0,1.65332438]
[1748905739957,0.50934172,105800.0,105790.0,1.29600591]
[1748905740429,0.50934172,105800.0,105790.0,1.26380591]
[1748905740647,0.53974172,105800.0,105790.0,1.26296591]
[1748905740877,0.53974172,105800.0,105790.0,1.24842506]
[1748905741570,0.53974172,105800.0,105790.0,0.77874506]
[1748905741793,0.53974172,105800.0,105790.0,1.24846506]
[1748905743175,0.53974172,105800.0,105790.0,1.24782506]
[1748905744354,0.50934172,105800.0,105790.0,1.24782506]
[1748905744812,0.50934172,105800.0,105790.0,1.54662506]
[1748905745737,0.50934172,105800.0,105790.0,1.20178506]
[1748905745981,0.50934172,105800.0,105790.0,1.54606506]
[1748905746921,0.50934172,105800.0,105790.0,1.20178506]
[1748905747203,0.50934172,105800.0,105790.0,1.54562506]
[1748905747431,0.50934172,105800.0,105790.0,1.54546506]
[1748905748103,0.50934172,105800.0,105790.0,1.20178506]
[1748905748541,0.50934172,105800.0,105790.0,1.54506506]
[1748905749075,0.50934172,105800.0,105790.0,1.56106506]
[1748905750578,0.50934172,105800.0,105790.0,1.54506506]
[1748905751397,0.50934172,105800.0,105790.0,1.93302438]
[1748905751678,0.50934172,105800.0,105790.0,1.94932438]
[1748905753133,0.50934172,105800.0,105790.0,1.24872591]
[1748905753350,0.50934172,105800.0,105790.0,1.59084591]
[1748905754015,0.50934172,105800.0,105790.0,1.57454591]
[1748905754262,0.50934172,105800.0,105790.0,1.93186438]
[1748905754472,0.50934172,105800.0,105790.0,1.55844591]
[1748905756950,0.00934172,105800.0,105790.0,1.55844591]
[1748905757665,0.00934172,105800.0,105790.0,1.09208591]
[1748905757856,0.04044172,105800.0,105790.0,1.53890506]
[1748905758579,0.04044172,105800.0,105790.0,1.53866506]
[1748905758794,0.04044172,105800.0,105790.0,1.19778506]
[1748905759012,0.04044172,105800.0,105790.0,1.53886506]
[1748905759451,0.04044172,105800.0,105790.0,1.19778506]
[1748905759670,0.04044172,105800.0,105790.0,1.53878506]
[1748905759896,0.04044172,105800.0,105790.0,1.19778506]
[1748905760117,0.00934172,105800.0,105790.0,1.07754506]
[1748905760365,0.00934172,105800.0,105790.0,1.54014506]
[1748905761974,0.04204172,105800.0,105790.0,1.54014506]
[1748905763607,0.04204172,105800.0,105790.0,1.19778506]
[1748905763799,0.04204172,105800.0,105790.0,1.54042506]
[1748905764025,0.04204172,105800.0,105790.0,1.19778506]
[1748905764256,0.04204172,105800.0,105790.0,1.54078506]
[1748905765917,0.04204172,105800.0,105790.0,1.49078506]
[1748905766410,0.00934172,105800.0,105790.0,1.19198506]
[1748905766852,0.02504172,105800.0,105790.0,1.19198506]
[1748905767544,0.04034172,105800.0,105790.0,1.19198506]
[1748905767986,0.00934172,105800.0,105790.0,0.84898506]
[1748905768208,0.00934172,105800.0,105790.0,1.19062506]
[1748905768689,0.04034172,105800.0,105790.0,0.72874506]
[1748905768925,0.04034172,105800.0,105790.0,1.19038506]
[1748905769144,0.04034172,105800.0,105790.0,1.19030506]
[1748905769819,0.04034172,105800.0,105790.0,1.19002506]
[1748905771140,0.04034172,105800.0,105790.0,1.24002506]
[1748905771391,0.04034172,105800.0,105790.0,0.89898506]
[1748905771615,0.04034172,105800.0,105790.0,1.23962506]
[1748905772745,0.04034172,105800.0,105790.0,0.89898506]
[1748905772974,0.39766019,105800.0,105790.0,0.89898506]
[1748905774774,0.39766019,105800.0,105790.0,1.23866506]
[1748905774992,0.04034172,105800.0,105790.0,1.23866506]
[1748905777109,0.04034172,105800.0,105790.0,1.23858506]
[1748905783215,0.00934172,105800.0,105790.0,1.23858506]
[1748905784607,0.02564172,105800.0,105790.0,1.23858506]
[1748905784834,0.04174172,105800.0,105790.0,1.23858506]
[1748905786906,0.04174172,105800.0,105790.0,0.89898506]
[1748905787133,0.04174172,105800.0,105790.0,1.23658506]
[1748905787364,0.04174172,105800.0,105790.0,0.77874506]
[1748905787597,0.39906019,105800.0,105790.0,0.89686506]
[1748905787817,0.39906019,105800.0,105790.0,1.23434506]
[1748905788088,0.40851127,105800.0,105790.0,1.23434506]
[1748905788309,0.41796252,105800.0,105790.0,1.23434506]
[1748905788535,0.40851127,105800.0,105790.0,1.23034506]
[1748905788767,0.39906019,105800.0,105790.0,1.23034506]
[1748905789001,0.41796235,105800.0,105790.0,1.22734506]
[1748905789234,0.40851118,105800.0,105790.0,1.22734506]
[1748905789727,0.41796235,105800.0,105790.0,1.22734506]
[1748905790878,0.4274136,105800.0,105790.0,1.22734506]
[1748905791334,0.40851118,105800.0,105790.0,1.22734506]
[1748905791806,0.04174172,105800.0,105790.0,1.22734506]
[1748905792006,0.40851127,105800.0,105790.0,1.22734506]
[1748905792745,0.41796252,105800.0,105790.0,1.22734506]
[1748905793486,0.42741386,105800.0,105790.0,1.22734506]
[1748905794174,0.41796252,105800.0,105790.0,1.22734506]
[1748905794639,0.41796252,105800.0,105790.0,0.77174506]
[1748905794640,0.42741386,105800.0,105790.0,0.77174506]
[1748905794874,0.43686547,105800.0,105790.0,1.10738506]
[1748905795104,0.63535317,105800.0,105790.0,0.36326524]
[1748905795353,0.61645084,105800.0,105790.0,0.25795888]
[1748905795578,0.6069995,105800.0,105790.0,0.25795888]
[1748905795848,0.9469995,105800.0,105790.0,0.25795888]
[1748905796042,0.95584909,105800.0,105790.0,0.24295888]
[1748905796178,0.9469995,105800.0,105790.0,0.24295888]
[1748905796403,0.95584911,105800.0,105790.0,0.27131613]
[1748905796604,0.9469995,105800.0,105790.0,0.27131613]
[1748905796806,0.96469872,105800.0,105790.0,0.26186389]
[1748905797036,0.9469995,105800.0,105790.0,0.27131622]
[1748905797220,0.95784911,105800.0,105790.0,0.27131622]
[1748905797416,0.75051153,105800.0,105790.0,0.28076828]
[1748905797648,0.76941422,105800.0,105790.0,0.28076828]
[1748905797856,0.96790192,105800.0,105790.0,0.28076846]
[1748905798358,0.98560114,105800.0,105790.0,0.28076846]
[1748905798601,0.78711344,105800.0,105790.0,0.28076793]
[1748905798878,0.81486654,105800.0,105790.0,0.23076793]
[1748905799080,0.99505284,105800.0,105790.0,0.23076793]
[1748905799291,0.97735362,105800.0,105790.0,0.23076793]
[1748905799522,0.77886592,105800.0,105790.0,0.23076793]
[1748905799735,0.78771553,105800.0,105790.0,0.23076793]
[1748905799950,0.79656514,105800.0,105790.0,0.23076802]
[1748905800177,0.78771553,105800.0,105790.0,0.23076757]
[1748905800399,0.99445066,105800.0,105790.0,0.23076757]
[1748905800620,1.08756406,105800.0,105790.0,0.22131551]
[1748905800853,0.80541475,105800.0,105790.0,0.23076757]
[1748905801103,0.77886592,105800.0,105790.0,0.23076757]
[1748905801316,0.96790254,105800.0,105790.0,0.20241156]
[1748905801990,0.61058407,105800.0,105790.0,0.2118638]
[1748905802271,0.98560226,105800.0,105790.0,0.2118638]
[1748905802702,0.9584512,105800.0,105790.0,0.2118638]
[1748905802915,0.78711501,105800.0,105790.0,0.22131586]
[1748905803127,0.9584512,105800.0,105790.0,0.2118638]
[1748905803607,0.9584512,105800.0,105790.0,0.21186389]
[1748905803828,0.9584512,105800.0,105790.0,0.22131595]
[1748905803829,0.76821061,105800.0,105790.0,0.22131595]
[1748905804071,0.74106019,105800.0,105790.0,0.22131595]
[1748905804314,0.75051118,105800.0,105790.0,0.22131595]
[1748905804528,0.01134172,105800.0,105790.0,0.31717025]
[1748905804773,0.01134172,105800.0,105790.0,0.39413403]
[1748905805013,0.01134172,105800.0,105790.0,0.42543403]
[1748905805458,0.01134172,105800.0,105790.0,0.39413403]
[1748905805915,0.01134172,105800.0,105790.0,0.40953403]
[1748905806133,0.01134172,105800.0,105790.0,0.42543403]
[1748905807022,0.01134172,105800.0,105790.0,0.47543403]
[1748905807296,0.01134172,105800.0,105790.0,0.39847025]
[1748905808468,0.01134172,105800.0,105790.0,0.36717025]
[1748905809392,0.01134172,105800.0,105790.0,0.38347025]
[1748905810701,0.01134172,105800.0,105790.0,0.40007025]
[1748905815511,0.01134172,105800.0,105790.0,0.71503025]
[1748905815727,0.01134172,105800.0,105790.0,0.99753025]
[1748905818385,0.01134172,105800.0,105790.0,1.01303025]
[1748905819486,0.01134172,105800.0,105790.0,0.99753025]
[1748905820626,0.01134172,105800.0,105790.0,1.11205025]
[1748905821756,0.01134172,105800.0,105790.0,1.12745025]
[1748905823750,0.00248348,105800.0,105790.0,1.12745025]
[1748905824622,0.00248348,105800.0,105790.0,1.11205025]
[1748905825493,0.00248348,105800.0,105790.0,1.52033025]
[1748905826373,0.00248348,105800.0,105790.0,1.55263025]
[1748905826841,0.00248348,105800.0,105790.0,1.53683025]
[1748905827063,0.00248348,105800.0,105790.0,1.18877025]
[1748905827286,0.00248348,105800.0,105790.0,1.51881025]
[1748905828642,0.39120195,105800.0,105790.0,1.18877025]
[1748905828859,0.39120195,105800.0,105790.0,1.51889025]
[1748905829294,0.39120195,105800.0,105790.0,1.07425025]
[1748905829752,0.39120195,105800.0,105790.0,1.51877025]
[1748905829753,0.41010419,105800.0,105790.0,1.51877025]
[1748905830849,0.41955553,105800.0,105790.0,1.51877025]
[1748905831070,0.41955553,105800.0,105790.0,1.51841025]
[1748905831974,0.42900705,105800.0,105790.0,1.51845025]
[1748905832188,0.41955553,105800.0,105790.0,1.51845025]
[1748905832400,0.42900705,105800.0,105790.0,1.51845025]
[1748905832866,0.70110373,105800.0,105790.0,1.04589335]
[1748905833081,0.94859251,105800.0,105790.0,0.8529343]
[1748905833301,0.93914117,105800.0,105790.0,0.75708]
[1748905833516,0.93914117,105800.0,105780.0,0.52762925]
[1748905833517,0.24005871,105790.0,105780.0,0.52762925]
[1748905833753,0.59737718,105790.0,105780.0,0.19850925]
[1748905833986,0.59737718,105790.0,105780.0,0.21741587]
[1748905834418,0.59737718,105790.0,105780.0,0.226869]
[1748905834630,0.43549901,105790.0,105780.0,0.23632204]
[1748905834851,0.02655251,105790.0,105780.0,0.3321758]
[1748905835081,0.02655251,105790.0,105780.0,0.7730158]
[1748905835358,0.0161,105790.0,105780.0,0.7730158]
[1748905835573,0.69780195,105800.0,105790.0,0.21741076]
[1748905835574,0.35708348,105800.0,105790.0,0.21741076]
[1748905835790,0.01708348,105800.0,105790.0,0.31326506]
[1748905836282,0.00048348,105800.0,105790.0,0.31326506]
[1748905836500,0.01608348,105800.0,105790.0,0.31326506]
[1748905836728,0.01608348,105800.0,105790.0,0.31426506]
[1748905836729,0.02208348,105800.0,105790.0,0.31426506]
[1748905837174,0.02908348,105800.0,105790.0,0.31426506]
[1748905837396,0.01348348,105800.0,105790.0,0.31426506]
[1748905840076,0.02878348,105800.0,105790.0,0.36426506]
[1748905840296,0.04408348,105800.0,105790.0,0.36426506]
[1748905842070,0.04408348,105800.0,105790.0,0.80482506]
[1748905842982,0.02878348,105800.0,105790.0,0.80482506]
[1748905843198,0.01348348,105800.0,105790.0,0.80482506]
[1748905843864,0.02878348,105800.0,105790.0,0.80482506]
[1748905844981,0.04498348,105800.0,105790.0,0.80482506]
[1748905845824,0.04498348,105800.0,105790.0,0.80370506]
[1748905847322,0.04498348,105800.0,105790.0,0.47658506]